Cogmind - Beta 13 @@@ ROGUE MODE // 2024.05.11 @ 17:27:56 Player: 6tay9 Result: Destroyed by S-10 Pest with Light Assault Rifle Performance ------------- Evolutions (1) 500 Regions Visited (2) 400 Robots Destroyed (19) 95 Value Destroyed (455) 455 Prototype IDs (6) 120 Alien Tech Used (0) 0 Bonus (0) 0 TOTAL SCORE: 1570 Bonus ------- None Cogmind --------- Core Integrity 0/400 Matter 300/300 Energy 62/100 System Corruption 0% Temperature Cool (9) Movement Core (50) Location -9/Materials Parts ------- > --- POWER (1) -------- (None) > --- PROPULSION (3) --- (None) > --- UTILITY (3) ------ Small Storage Unit Weight Redist. System Signal Interpreter > --- WEAPON (2) ------- Improved Medium Laser > --- INVENTORY (8) ---- Light Ion Engine Seismic Detector Datajack Peak State ------------ > --- POWER ------------ Light Ion Engine > --- PROPULSION ------- Wheel Hover Unit > --- UTILITY ---------- Small Storage Unit Weight Redist. System Signal Interpreter > --- WEAPON ----------- Improved Medium Laser Katana > --- INVENTORY -------- Light Ion Engine Seismic Detector [Rating: 13] Favorites ----------- Power Light Ion Engine Engine Light Ion Engine Propulsion Wheel Wheel Wheel Hover Unit Hover Unit Utility Small Storage Unit Device Sensor Array Storage Small Storage Unit Processor Signal Interpreter Weapon Medium Laser Energy Gun Medium Laser Ballistic Gun Light Assault Rifle Slashing Weapon Katana Build | -11 -10 -9 ------- Run | Yrd Mat Mat Slots Evolved 2 | . . 2 Power . | . . . Propulsion 1 | . . 1 Utility 1 | . . 1 Weapon . | . . . Parts Attached 23 | 6 1 16 Power 4 | 1 . 3 Engine 4 | 1 . 3 Core . | . . . Reactor . | . . . Propulsion 7 | 2 . 5 Treads . | . . . Leg . | . . . Wheel 3 | 2 . 1 Hover 4 | . . 4 Flight . | . . . Utility 5 | 1 1 3 Device 3 | . 1 2 Storage 1 | 1 . . Processor 1 | . . 1 Hackware . | . . . Protection . | . . . Artifact . | . . . Weapon 7 | 2 . 5 Energy Gun 4 | 1 . 3 Energy Cannon . | . . . Ballistic Gun 2 | 1 . 1 Ballistic Cannon . | . . . Launcher . | . . . Special Weapon . | . . . Impact Weapon . | . . . Slashing Weapon 1 | . . 1 Piercing Weapon . | . . . Special Melee Weapon . | . . . Unidentified Prototypes 1 | . . 1 Parts Lost 16 | . 4 12 Power 4 | . 1 3 Propulsion 6 | . 2 4 Utility 2 | . 1 1 Weapon 4 | . . 4 Highest Loss Streak 7 | . 2 7 To Critical Strikes . | . . . Average Slot Usage (%) 73 | . 85 66 Engine 8 | . 13 6 Wheel 11 | . 25 2 Hover 9 | . . 14 Device 6 | . 3 8 Storage 12 | . 14 11 Processor 6 | . . 10 Energy Gun 10 | . 14 8 Ballistic Gun 5 | . 14 . Slashing Weapon 2 | . . 3 Naked Turns . | . . . Heaviest Build 13 | 11 12 13 Greatest Support 20 | 20 20 18 Greatest Overweight (x) 4 | . 2 4 Average Overweight (x) . | . . . Largest Inventory Capacity 8 | 8 8 8 Average Capacity 7 | 7 8 8 Most Carried 4 | . 4 4 Average Carried 1 | . 1 2 Final Capacity 8 | 8 8 8 Final Carried 4 | . 4 3 Class Distribution -------------------- 54% | Scavenger-Mutant 45% | Mutant Dominant Class ---------------- Mutant | -10/Materials Scavenger-Mutant | -9/Materials Resources | -11 -10 -9 ----------- Run | Yrd Mat Mat Matter Collected 425 | 219 72 134 Remotely . | . . . Salvage Created 722 | . 111 611 Parts 41 | . 10 31 Haulers Intercepted 1 | . . 1 Recyclers Shooed . | . . . Parts Field Recycled . | . . . Retrieved Matter . | . . . Parts Self-Destructed . | . . . Prevented . | . . . Kills | -11 -10 -9 ------- Run | Yrd Mat Mat Combat Hostiles Destroyed 9 | . 2 7 Melee 1 | . . 1 Guns 8 | . 2 6 Classes Destroyed 8 | . 2 6 Worker 1 | . . 1 Tunneler 2 | . . 2 Hauler 1 | . . 1 Recycler 1 | . . 1 Watcher 5 | . 3 2 Grunt 5 | . 2 3 Duelist 1 | . . 1 Sentry 3 | . . 3 Best Kill Streak 5 | . 2 5 Combat Bots Only 2 | . 1 2 Max Kills in Single Turn 1 | . 1 1 Gunslinging . | . . . Exploded . | . . . Melee 1 | . . 1 Uniques/NPCs Destroyed . | . . . Combat | -11 -10 -9 -------- Run | Yrd Mat Mat Hostile Shots Fired 134 | . 53 81 Missed 37 | . 17 20 Damage Taken 1421 | . 453 968 Core 530 | . 130 400 Absorbed by Shields . | . . . Core Remaining (%) 74 | 100 48 . Volleys Fired 76 | . 34 42 Largest 2 | . 2 1 Hottest 70 | . 70 56 Shots Fired 97 | . 55 42 Gun 97 | . 55 42 Cannon . | . . . Launcher . | . . . Special . | . . . Kinetic 25 | . 21 4 Thermal 51 | . 34 17 Explosive . | . . . Electromagnetic 21 | . . 21 Robot Hit Streak 14 | . 8 14 Robot Miss Streak 4 | . 4 3 Penetration Max . | . . . Secondary Targets 1 | . 1 . Max Gunslinging Chain 1 | . 1 . Shots Hit Robots 74 | . 28 46 Core Hits 35 | . 9 26 Critical Kills . | . . . Critical Parts Destroyed . | . . . Critical Strikes 4 | . 3 1 Burn 3 | . 3 . Sever 1 | . . 1 Melee Attacks 14 | . . 14 Impact . | . . . Slashing 14 | . . 14 Piercing . | . . . Sneak Attacks 2 | . . 2 Combat Hostiles . | . . . Follow-up Attacks . | . . . Damage Inflicted 1284 | . 317 967 Guns 864 | . 317 547 Cannons . | . . . Explosions . | . . . Melee 420 | . . 420 Ramming . | . . . Kinetic 117 | . 80 37 Thermal 418 | . 237 181 Explosive . | . . . Electromagnetic 329 | . . 329 Impact . | . . . Slashing 420 | . . 420 Piercing . | . . . Highest Corruption . | . . . Average Corruption . | . . . Corruption Purged . | . . . Corruption Blocked . | . . . Overload Shots . | . . . Overflow Damage 22 | . . 22 Projectiles . | . . . Explosions . | . . . Melee 22 | . . 22 Knockbacks . | . . . Impact . | . . . Kinetic . | . . . Secondary . | . . . Self-Inflicted Damage . | . . . Shots . | . . . Rammed . | . . . Targets Rammed . | . . . Kicked . | . . . Crushed . | . . . Highest Temperature 210 | . 210 40 Average Temperature 54 | . 81 16 Received Heat Transfer 459 | . 246 213 Effects 3 | . 3 . Interference 3 | . 3 . Siege Activations . | . . . Robots Corrupted . | . . . Combat Hostiles . | . . . Parts Fried . | . . . Impact Corruptions . | . . . Robots Melted . | . . . Combat Hostiles . | . . . Parts Melted 1 | . . 1 Heat Transferred 1406 | . 925 481 Parts Sabotaged . | . . . Parts Stolen . | . . . Parts Stripped . | . . . Power Chain Reactions . | . . . Alert | -11 -10 -9 ------- Run | Yrd Mat Mat Peak Influence 187 | . 115 187 Initial 34 | . . 34 Average 82 | . 50 109 Maximum Alert Level . | . . . Low Security (%) 100 | 100 100 100 Level 1 . | . . . Level 2 . | . . . Level 3 . | . . . Level 4 . | . . . Level 5 . | . . . High Security . | . . . Max Security . | . . . Squads Dispatched 2 | . 2 . Investigation 1 | . 1 . Extermination . | . . . Reinforcement 1 | . 1 . Assault . | . . . Garrison . | . . . Intercept . | . . . Searches Triggered . | . . . Construction Impeded . | . . . Haulers Reinforced . | . . . Active Scanning Responses . | . . . Cargo Convoy Interrupts . | . . . Stealth | -11 -10 -9 --------- Run | Yrd Mat Mat Distress Signals 4 | . 1 3 Communications Jammed . | . . . Distress Signals . | . . . Times Spotted 21 | . 8 13 Peak Tracking Total 4 | . 3 4 Tactical Retreats . | . . . Traps | -11 -10 -9 ------- Run | Yrd Mat Mat Traps Triggered 1 | . 1 . Indirectly . | . . . Trap Hack Attempts . | . . . Triggered . | . . . Disarmed . | . . . Reprogrammed . | . . . Reused . | . . . Traps Extracted . | . . . Installed . | . . . Triggered . | . . . Machines | -11 -10 -9 ---------- Run | Yrd Mat Mat Machines Disabled . | . . . Max in Single Turn . | . . . Machines Repaired . | . . . Machines Dismantled . | . . . Machines Sabotaged . | . . . Overloaded Fab Kills . | . . . Hacking | -11 -10 -9 --------- Run | Yrd Mat Mat Machines Accessed 5 | . 1 4 Terminals 5 | . 1 4 Fabricators . | . . . Repair Stations . | . . . Recycling Units . | . . . Scanalyzers . | . . . Garrison Access . | . . . Total Hacks 19 | . 6 13 Successful 10 | . 2 8 Failed 9 | . 4 5 Catastrophic 2 | . 1 1 Database Lockouts . | . . . Manual . | . . . Terminals 19 | . 6 13 Fabricators . | . . . Repair Stations . | . . . Recycling Units . | . . . Scanalyzers . | . . . Garrison Access . | . . . Terminal Hacks 10 | . 2 8 Record 1 | . . 1 Prototype ID Bank 3 | . 1 2 Branch Access Points 1 | . . 1 Dispatch Records 1 | . . 1 Hauler Manifests 1 | . . 1 Registered Components 1 | . . 1 Zone Layout 2 | . 1 1 Fabricator Hacks . | . . . Repair Station Hacks . | . . . Recycling Unit Hacks . | . . . Scanalyzer . | . . . Garrison Access Hacks . | . . . Unauthorized Hacks . | . . . Terminals . | . . . Fabricators . | . . . Repair Stations . | . . . Recycling Units . | . . . Scanalyzers . | . . . Garrison Access . | . . . Data Cores Recovered . | . . . Used . | . . . Hacking Detections 4 | . 1 3 Full Trace Events 1 | . . 1 Feedback Events . | . . . Feedback Blocked . | . . . Robot Schematics Acquired . | . . . Robots Built . | . . . Authchips . | . . . Time . | . . . Total Robot Build Rating . | . . . Part Schematics Acquired . | . . . Parts Built . | . . . Authchips . | . . . Time . | . . . Total Part Build Rating . | . . . Parts Repaired . | . . . Time . | . . . Parts Recycled . | . . . Recycled Matter . | . . . Retrieved Matter . | . . . Retrieved Components . | . . . Parts Scanalyzed . | . . . Part Schematics Acquired . | . . . Parts Damaged . | . . . Bothacking | -11 -10 -9 ------------ Run | Yrd Mat Mat Used RIF Installer . | . . . Robots Hacked . | . . . Non-combat . | . . . Combat . | . . . Robot Hacks Applied . | . . . Relay Couplers Released . | . . . Fabnet Peak Effective % . | . . . Robots Rewired . | . . . Allies Hacked . | . . . Hacks Repelled . | . . . Allies | -11 -10 -9 -------- Run | Yrd Mat Mat Total Allies . | . . . Largest Group . | . . . Highest-Rated Group . | . . . Highest-Rated Ally . | . . . Total Orders . | . . . Ally Attacks . | . . . Total Damage . | . . . Kills . | . . . Allies Corrupted . | . . . Allies Melted . | . . . Intel | -11 -10 -9 ------- Run | Yrd Mat Mat Robot Analysis Total . | . . . Derelict Logs Recovered . | . . . Drone Launches . | . . . Drone Recoveries . | . . . Exploration | -11 -10 -9 ------------- Run | Yrd Mat Mat Turns Passed 718 | 39 259 420 Spaces Moved 608 | 38 207 363 Core 21 | 1 4 16 Treads . | . . . Legs . | . . . Wheels 240 | 37 203 . Hover 347 | . . 347 Flight . | . . . Fastest Speed 50 | 50 80 52 Average Speed 75 | 79 82 71 Slowest Speed 250 | 80 150 250 Overloaded Moves . | . . . Propulsion Burnouts . | . . . Robots Hopped . | . . . Cave-ins Triggered . | . . . Exploration Rate (%) 22 | 3 25 38 Regions Visited 2 Branch Regions . Pre-discovered Areas . | . . . Known Exits Taken . | . . . Unknown Exits Taken 2 | 1 1 . Scrap Searched . | . . . Spaces Dug . | . . . Terrain Destroyed . | . . . Melee . | . . . Projectile . | . . . AOE . | . . . Terrain Rammed . | . . . Walls Destroyed . | . . . Machines Disabled . | . . . Actions | -11 -10 -9 --------- Run | Yrd Mat Mat Total 745 | 43 245 457 Wait 17 | . . 17 Move 606 | 37 206 363 Hop . | . . . Pick Up 8 | . 4 4 Fast Attach 16 | 6 1 9 Attach 6 | . . 6 Detach 1 | . . 1 Swap 1 | . . 1 Drop . | . . . Fire 76 | . 34 42 Melee 14 | . . 14 Ram . | . . . Kick . | . . . Crush . | . . . Escape Stasis . | . . . Rewire . | . . . Trap . | . . . Miscellaneous . | . . . Route ------- -11/Scrapyard -10/Materials -9/Materials (discovered 2 exits: *Mat / Min) History --------- Turn | Location | Event 8 | -11/Scrapyard | Discovered new exit (range 16) 40 | -11/Scrapyard | Entered Materials 180 | -10/Materials | Discovered new exit (range 5) 282 | -10/Materials | Core integrity fell below 50% 299 | -10/Materials | Entered another Materials area 299 | -9/Materials | Evolved 2 slots: Propulsion x1, Utility x1 379 | -9/Materials | Identified exit to Mines 492 | -9/Materials | Discovered new exit (range 9) 548 | -9/Materials | Core integrity fell below 50% 580 | -9/Materials | Identified exit to Materials 593 | -9/Materials | Lost 7 parts (2p1n1u3w) 695 | -9/Materials | Core integrity fell below 20% 719 | -9/Materials | Destroyed by S-10 Pest with Light Assault Rifle Last Messages --------------- Sneak attack on T-07 Excavator. T-07 Excavator destroyed. K-01 Serf collects debris. R-06 Scavenger collects Heat Sink. R-06 Scavenger collects Mining Laser. Acquired Lgt. Ion Engine. K-01 Serf collects debris. Acquired Prototype Energy Gun. Identified Imp. Medium Laser. Acquired Datajack. W-16 Scout sends out distress signal. K-01 Serf collects debris. Lgt. Ion Engine destroyed. K-01 Serf cleans the Material Processor. Y-45 Defender Lgt. Treads severed. Wheel destroyed. Hover Unit destroyed. Katana destroyed. Material Processor disabled. Y-45 Defender destroyed. Map ----- +----------------------------------------------------+ | | | | | | | | | | | | | | | | | | | | | | | | | | | | | | | | | | | | | | | ?????#######???????????#####?????????????????? | | ?????# #????# ??? #????????????????? | | ?????# #????# """ ""#????????????????? | | ?????#= ///#???## """"" Y"#????????????????? | | ?????# // #???# w""""" ""#????????????????? | | ###### // #????# """"" #????????????????? | | + #????# ""[ @ #????????????????? | | ###### #????# %== #????????????????? | | ?????# #????#######!#####????????????????? | | ###### """ ###########s +???>????????????? | | * ## "R + ###????????????????? | | ## """ ##########^^^^ #??????????????????? | | ## #????????# #??????????????????? | | ####+###????????# #??????????????????? | | #???????????????# #??????????????????? | | % ### #?????????# ?????????????????? | | + #?????????+ ????????????????? | | ### #?????????# """ ???????????????? | | #???? #?????????# """"" ?????????????? | | #####???????????????# """"" ????????????? | | ####????????????????# ""??? ????????????? | | #????????????????# ????? ????????????? | | #????????????????# ?????? ?????????????? | | " #????????????????# ?????????????????????? | | " #????????????????####?????????????????????? | | " !#?????????????????????????????????????????? | | #?????????????????????????????????????????? | | #?????????????????????????????????????????? | | "T"??????????????????????????????????????? | | ???????????????????????????????????? | | #??????????????????????????????????? | +----------------------------------------------------+ Best States ------------- Heat Dissipation 28 Energy Generation 14 Energy Capacity 280 Matter Stores 300 Matter Capacity 300 Sight Range 16 Robot Scan Range 14 Terrain Scan Density 10 Additional Mass Support 6 Evasion (%) 54 Item Schematics ----------------- None Robot Schematics ------------------ None Fabricated ------------ Nothing Alien Tech Used ----------------- None Achievements -------------- None Challenges ------------ None Game ------ Seed MyomerCoolantVibroblade Manual? 0 Play Time 00:19:17 Cumulative 4.7 hours Start 2024.05.11 @ 17:11:19 End 2024.05.11 @ 17:27:56 Sessions 1 Manual Loads 0 Difficulty Rogue Special Mode None Game No. 5 Rogue 5 Adventurer 0 Explorer 0 Win Type - Total 0 Types 0/0/0/0/0/0/0/0/0 Lore% 4 Gallery% 8 Achievement% 7 Wizard Run 0 Options --------- Layout 1 ASCII 1 Keyboard 1 Movement Vi Keybinds 0 Fullscreen 2 Font 24/X11 Map View 50x35 Zoom Use 0% Tactical HUD 0 Map Filters NONE Filters NONE Steam 1 RUN: 07995d1f-1e01-4106-92bc-c0052f1e9347